fUSD/lending_fUSD_20240220
["ID","MTS","AMOUNT","RATE_DAILY","PERIOD"]
[314552702,1708419041731,-500.0,0.00035616,2]
[314552703,1708419041741,-500.0,0.00035616,2]
[314552704,1708419041979,-500.0,0.00035616,2]
[314552705,1708419041989,-500.0,0.00035616,2]
[314552706,1708419041999,-153.14,0.00035616,2]
[314552707,1708419042008,-500.0,0.00035616,2]
[314552708,1708419042017,-500.0,0.00035616,2]
[314552709,1708419042026,-500.0,0.00035616,2]
[314552710,1708419042035,-532.47384442,0.00035616,2]
[314552711,1708419042044,-500.0,0.00035616,2]
[314552712,1708419042053,-500.0,0.00035616,2]
[314552713,1708419042063,-500.0,0.00035616,2]
[314552714,1708419042072,-500.0,0.00035616,2]
[314552715,1708419042081,-604.67814751,0.00035616,2]
[314552716,1708419042092,-500.0,0.00035616,2]
[314552717,1708419042101,-500.0,0.00035616,2]
[314552718,1708419042110,-500.0,0.00035616,2]
[314552719,1708419042119,-500.0,0.00035616,2]
[314552720,1708419042128,-2000.0,0.00035616,2]
[314552721,1708419042138,-500.0,0.00035616,2]
[314552722,1708419042147,-500.0,0.00035616,2]
[314552723,1708419042157,-500.0,0.00035616,2]
[314552724,1708419042166,-500.0,0.00035616,2]
[314552725,1708419042175,-200.0,0.00035616,2]
[314552726,1708419042185,-500.0,0.00035616,2]
[314552727,1708419042194,-500.0,0.00035616,2]
[314552728,1708419042203,-500.0,0.00035616,2]
[314552729,1708419042213,-500.0,0.00035616,2]
[314552730,1708419042222,-529.82512964,0.00035616,2]
[314552731,1708419042232,-541.02170624,0.00035616,2]
[314552732,1708419042241,-500.0,0.00035616,2]
[314552733,1708419042250,-519.3,0.00035616,2]
[314552734,1708419042260,-531.19645866,0.00035616,2]
[314552735,1708419042270,-500.0,0.00035616,2]
[314552736,1708419042279,-500.0,0.00035616,2]
[314552737,1708419042288,-500.0,0.00035616,2]
[314552738,1708419042298,-500.0,0.00035616,2]
[314552739,1708419042308,-500.0,0.00035616,2]
[314552740,1708419042317,-500.0,0.00035616,2]
[314552741,1708419042327,-500.0,0.00035616,2]
[314552742,1708419042336,-560.38,0.00035616,2]
[314552743,1708419042347,-500.0,0.00035616,2]
[314552744,1708419042357,-500.0,0.00035616,2]
[314552745,1708419042366,-500.0,0.00035616,2]
[314552746,1708419042375,-500.0,0.00035616,2]
[314552747,1708419042384,-500.0,0.00035616,2]
[314552748,1708419042393,-500.0,0.00035616,2]
[314552749,1708419042403,-500.0,0.00035616,2]
[314552750,1708419042412,-500.0,0.00035616,2]
[314552751,1708419042422,-500.0,0.00035616,2]
[314552752,1708419042431,-500.0,0.00035616,2]
[314552753,1708419042440,-500.0,0.00035616,2]
[314552754,1708419042450,-500.0,0.00035616,2]
[314552755,1708419042460,-500.0,0.00035616,2]
[314552756,1708419042470,-500.0,0.00035616,2]
[314552757,1708419042479,-500.0,0.00035616,2]
[314552758,1708419042488,-500.0,0.00035616,2]
[314552759,1708419042498,-500.0,0.00035616,2]
[314552760,1708419042507,-500.0,0.00035616,2]
[314552761,1708419042517,-500.0,0.00035616,2]
[314552762,1708419042526,-551.87091575,0.00035616,2]
[314552763,1708419042536,-500.0,0.00035616,2]
[314552764,1708419042545,-500.0,0.00035616,2]
[314552765,1708419042554,-500.0,0.00035616,2]
[314552766,1708419042564,-436.39488142,0.00035616,2]
[314552767,1708419042573,-500.0,0.00035616,2]
[314552768,1708419042583,-500.0,0.00035616,2]
[314552769,1708419042593,-500.0,0.00035616,2]
[314552770,1708419042603,-500.0,0.00035616,2]
[314552771,1708419042612,-500.0,0.00035616,2]
[314552772,1708419042621,-500.0,0.00035616,2]
[314552773,1708419042631,-500.0,0.00035616,2]
[314552774,1708419042641,-500.0,0.00035616,2]
[314552775,1708419042650,-500.0,0.00035616,2]
[314552776,1708419042659,-500.0,0.00035616,2]
[314552777,1708419042668,-500.0,0.00035616,2]
[314552778,1708419042678,-535.15937453,0.00035616,2]
[314552779,1708419042687,-500.0,0.00035616,2]
[314552780,1708419042697,-500.0,0.00035616,2]
[314552781,1708419042711,-500.0,0.00035616,2]
[314552782,1708419042721,-500.0,0.00035616,2]
[314552783,1708419042731,-500.0,0.00035616,2]
[314552784,1708419042740,-521.98,0.00035616,2]
[314552785,1708419042750,-500.0,0.00035616,2]
[314552786,1708419042759,-500.0,0.00035616,2]
[314552787,1708419042768,-500.0,0.00035616,2]
[314552788,1708419042779,-500.0,0.00035616,2]
[314552789,1708419042789,-500.0,0.00035616,2]
[314552790,1708419042798,-500.0,0.00035616,2]
[314552791,1708419042807,-500.0,0.00035616,2]
[314552792,1708419042817,-500.0,0.00035616,2]
[314552793,1708419042826,-500.0,0.00035616,2]
[314552794,1708419042836,-510.60878276,0.00035616,2]
[314552795,1708419042847,-500.0,0.00035616,2]
[314552796,1708419042857,-500.0,0.00035616,2]
[314552797,1708419042866,-500.0,0.00035616,2]
[314552798,1708419042875,-500.0,0.00035616,2]
[314552799,1708419042886,-500.0,0.00035616,2]
[314552801,1708419042895,-500.0,0.00035616,2]
[314552802,1708419042905,-382.30535855,0.00035616,2]
[314552803,1708419042914,-500.0,0.00035616,2]
[314552804,1708419042925,-500.0,0.00035616,2]
[314552805,1708419042935,-500.0,0.00035616,2]
[314552806,1708419042944,-500.0,0.00035616,2]
[314552808,1708419042953,-749.21,0.00035616,2]
[314552810,1708419042962,-500.0,0.00035616,2]
[314552811,1708419042972,-500.0,0.00035616,2]
[314552812,1708419042981,-500.0,0.00035616,2]
[314552813,1708419042990,-500.0,0.00035616,2]
[314552814,1708419043000,-500.0,0.00035616,2]
[314552815,1708419043009,-552.12094725,0.00035616,2]
[314552816,1708419043018,-500.0,0.00035616,2]
[314552817,1708419043028,-500.0,0.00035616,2]
[314552818,1708419043037,-500.0,0.00035616,2]
[314552819,1708419043046,-2093.16,0.00035616,2]
[314552820,1708419043055,-551.81,0.00035616,2]
[314552821,1708419043064,-662.62,0.00035616,2]
[314552822,1708419043074,-500.0,0.00035616,2]
[314552823,1708419043082,-980.19,0.00035616,2]
[314552824,1708419043093,-894.25,0.00035616,2]
[314552826,1708419043102,-529.59,0.00035616,2]
[314552827,1708419043111,-500.0,0.00035616,2]
[314552828,1708419043120,-500.0,0.00035616,2]
[314552829,1708419043129,-380.17139611,0.00035616,2]
[314552830,1708419043138,-500.0,0.00035616,2]
[314552831,1708419043147,-725.3,0.00035616,2]
[314552832,1708419043156,-500.0,0.00035616,2]
[314552833,1708419043165,-1580.03,0.00035616,2]
[314552834,1708419043174,-525.74,0.00035616,2]
[314552835,1708419043183,-1208.97,0.00035616,2]
[314552836,1708419043192,-500.0,0.00035616,2]
[314552837,1708419043201,-500.0,0.00035616,2]
[314552838,1708419043210,-500.0,0.00035616,2]
[314552839,1708419043219,-500.0,0.00035616,2]
[314552840,1708419043228,-454.24160214,0.00035616,2]
[314552841,1708419043237,-500.0,0.00035616,2]
[314552842,1708419043246,-1243.9,0.00035616,2]
[314552843,1708419043255,-3100.29,0.00035616,2]
[314552844,1708419043265,-500.0,0.00035616,2]
[314552845,1708419043274,-500.0,0.00035616,2]
[314552846,1708419043283,-500.0,0.00035616,2]
[314552847,1708419043293,-500.0,0.00035616,2]
[314552848,1708419043302,-500.0,0.00035616,2]
[314552849,1708419043311,-500.0,0.00035616,2]
[314552850,1708419043320,-1330.24,0.00035616,2]
[314552851,1708419043329,-576.75383634,0.00035616,2]
[314552852,1708419043338,-850.72,0.00035616,2]
[314552853,1708419043347,-500.0,0.00035616,2]
[314552854,1708419043357,-964.5,0.00035616,2]
[314552855,1708419043366,-500.0,0.00035616,2]
[314552856,1708419043375,-500.0,0.00035616,2]
[314552857,1708419043385,-1212.25,0.00035616,2]
[314552858,1708419043395,-500.0,0.00035616,2]
[314552859,1708419043404,-500.0,0.00035616,2]
[314552860,1708419043413,-1534.07,0.00035616,2]
[314552861,1708419043423,-500.0,0.00035616,2]
[314552862,1708419043432,-500.0,0.00035616,2]
[314552863,1708419043442,-500.0,0.00035616,2]
[314552864,1708419043452,-269.01406931,0.00035616,2]
[314552865,1708419043461,-500.0,0.00035616,2]
[314552866,1708419043470,-2176.66,0.00035616,2]
[314552867,1708419043480,-856.42,0.00035616,2]
[314552868,1708419043489,-585.7678742,0.00035616,2]
[314552869,1708419043498,-381.49998758,0.00035616,2]
[314552870,1708419043507,-500.0,0.00035616,2]
[314552871,1708419043516,-500.0,0.00035616,2]
[314552872,1708419043526,-1115.04,0.00035616,2]
[314552873,1708419043535,-1334.25,0.00035616,2]
[314552874,1708419043545,-500.0,0.00035616,2]
[314552875,1708419043554,-500.0,0.00035616,2]
[314552876,1708419043564,-500.0,0.00035616,2]
[314552877,1708419043573,-500.0,0.00035616,2]
[314552878,1708419043583,-745.79,0.00035616,2]
[314552879,1708419043594,-531.90495261,0.00035616,2]
[314552880,1708419043603,-500.0,0.00035616,2]
[314552881,1708419043613,-1452.56,0.00035616,2]
[314552882,1708419043623,-500.0,0.00035616,2]
[314552883,1708419043632,-500.0,0.00035616,2]
[314552884,1708419043642,-459.39601163,0.00035616,2]
[314552885,1708419043652,-876.46,0.00035616,2]
[314552886,1708419043662,-1884.8,0.00035616,2]
[314552887,1708419043672,-1787.74,0.00035616,2]
[314552888,1708419043682,-500.0,0.00035616,2]
[314552889,1708419043692,-723.13,0.00035616,2]
[314552890,1708419043701,-500.0,0.00035616,2]
[314552891,1708419043711,-2257.31,0.00035616,2]
[314552892,1708419043721,-500.0,0.00035616,2]
[314552893,1708419043730,-500.0,0.00035616,2]
[314552894,1708419043739,-500.0,0.00035616,2]
[314552895,1708419043749,-1284.1,0.00035616,2]
[314552896,1708419043758,-500.0,0.00035616,2]
[314552897,1708419043767,-510.17321396,0.00035616,2]
[314552898,1708419043777,-500.0,0.00035616,2]
[314552899,1708419043786,-500.0,0.00035616,2]
[314552900,1708419043795,-500.0,0.00035616,2]
[314552901,1708419043805,-500.0,0.00035616,2]
[314552902,1708419043814,-1317.21,0.00035616,2]
[314552903,1708419043824,-664.67,0.00035616,2]
[314552904,1708419043833,-500.0,0.00035616,2]
[314552905,1708419043844,-19368.97,0.00035616,2]
[314552906,1708419043856,-500.0,0.00035616,2]
[314552907,1708419043865,-1946.84,0.00035616,2]
[314552908,1708419043875,-1098.69,0.00035616,2]
[314552909,1708419043885,-1710.86,0.00035616,2]
[314552910,1708419043896,-500.0,0.00035616,2]
[314552911,1708419043907,-569.5,0.00035616,2]
[314552912,1708419043916,-500.0,0.00035616,2]
[314552913,1708419043925,-500.0,0.00035616,2]
[314552914,1708419043936,-500.0,0.00035616,2]
[314552915,1708419043944,-2859.93,0.00035616,2]
[314552916,1708419043955,-931.29,0.00035616,2]
[314552917,1708419043964,-500.0,0.00035616,2]
[314552918,1708419043974,-1618.26,0.00035616,2]
[314552919,1708419043983,-500.0,0.00035616,2]
[314552920,1708419043994,-500.0,0.00035616,2]
[314552921,1708419044005,-500.0,0.00035616,2]
[314552922,1708419044015,-500.0,0.00035616,2]
[314552923,1708419044024,-500.0,0.00035616,2]
[314552924,1708419044034,-1173.24,0.00035616,2]
[314552925,1708419044043,-500.0,0.00035616,2]
[314552926,1708419044052,-909.66,0.00035616,2]
[314552927,1708419044061,-500.0,0.00035616,2]
[314552928,1708419044071,-917.71,0.00035616,2]
[314552929,1708419044080,-500.0,0.00035616,2]
[314552930,1708419044092,-500.0,0.00035616,2]
[314552931,1708419044103,-508.04624203,0.00035616,2]
[314552932,1708419044114,-1172.79,0.00035616,2]
[314552933,1708419044124,-500.0,0.00035616,2]
[314552934,1708419044134,-500.0,0.00035616,2]
[314552935,1708419044143,-500.0,0.00035616,2]
[314552936,1708419044153,-500.0,0.00035616,2]
[314552937,1708419044162,-500.0,0.00035616,2]
[314552938,1708419044171,-500.0,0.00035616,2]
[314552939,1708419044180,-500.0,0.00035616,2]
[314552940,1708419044190,-1017.47,0.00035616,2]
[314552941,1708419044199,-500.0,0.00035616,2]
[314552942,1708419044208,-716.74,0.00035616,2]
[314552943,1708419044219,-500.0,0.00035616,2]
[314552944,1708419044230,-1496.57,0.00035616,2]
[314552945,1708419044241,-1040.3,0.00035616,2]
[314552946,1708419044309,-500.0,0.00035616,2]
[314552947,1708419044318,-549.64,0.00035616,2]
[314552948,1708419044328,-500.0,0.00035616,2]
[314552949,1708419044339,-500.0,0.00035616,2]
[314552950,1708419044348,-500.0,0.00035616,2]
[314552951,1708419044357,-500.0,0.00035616,2]
[314552952,1708419044367,-500.0,0.00035616,2]
[314552953,1708419044376,-500.0,0.00035616,2]
[314552954,1708419044385,-2386.85,0.00035616,2]
[314552955,1708419044394,-500.0,0.00035616,2]
[314552956,1708419044403,-500.0,0.00035616,2]
[314552957,1708419044411,-2416.0,0.00035616,2]
[314552958,1708419044420,-909.65,0.00035616,2]
[314552959,1708419044429,-7071.43,0.00035616,2]
[314552960,1708419044438,-623.98,0.00035616,2]
[314552961,1708419044447,-862.19,0.00035616,2]
[314552962,1708419044456,-462.67214353,0.00035616,2]
[314552963,1708419044465,-1367.41,0.00035616,2]
[314552964,1708419044474,-627.77,0.00035616,2]
[314552965,1708419044482,-500.0,0.00035616,2]
[314552966,1708419044492,-500.0,0.00035616,2]
[314552967,1708419044501,-500.0,0.00035616,2]
[314552968,1708419044510,-500.0,0.00035616,2]
[314552969,1708419044519,-500.0,0.00035616,2]
[314552970,1708419044528,-1487.3,0.00035616,2]
[314552971,1708419044537,-500.0,0.00035616,2]
[314552972,1708419044546,-500.0,0.00035616,2]
[314552973,1708419044555,-500.0,0.00035616,2]
[314552974,1708419044565,-730.51,0.00035616,2]
[314552975,1708419044574,-877.02,0.00035616,2]
[314552976,1708419044583,-500.0,0.00035616,2]
[314552977,1708419044593,-500.0,0.00035616,2]
[314552978,1708419044601,-500.0,0.00035616,2]
[314552979,1708419044610,-500.0,0.00035616,2]
[314552980,1708419044619,-1172.63,0.00035616,2]
[314552981,1708419044629,-500.0,0.00035616,2]
[314552982,1708419044638,-500.0,0.00035616,2]
[314552983,1708419044646,-612.59,0.00035616,2]
[314552984,1708419044655,-500.0,0.00035616,2]
[314552985,1708419044665,-5941.42,0.00035616,2]
[314552986,1708419044674,-500.0,0.00035616,2]
[314552987,1708419044684,-500.0,0.00035616,2]
[314552988,1708419044693,-531.08690119,0.00035616,2]
[314552989,1708419044702,-500.0,0.00035616,2]
[314552990,1708419044712,-564.77,0.00035616,2]
[314552991,1708419044723,-500.0,0.00035616,2]
[314552992,1708419044733,-500.0,0.00035616,2]
[314552993,1708419044742,-500.0,0.00035616,2]
[314552994,1708419044751,-500.0,0.00035616,2]
[314552995,1708419044761,-500.0,0.00035616,2]
[314552996,1708419044770,-500.0,0.00035616,2]
[314552997,1708419044780,-4094.45,0.00035616,2]
[314552998,1708419044789,-576.84238986,0.00035616,2]
[314552999,1708419044799,-768.8,0.00035616,2]
[314553000,1708419044809,-500.0,0.00035616,2]
[314553001,1708419044818,-2950.34,0.00035616,2]
[314553002,1708419044827,-1002.53,0.00035616,2]
[314553003,1708419044837,-500.0,0.00035616,2]
[314553004,1708419044851,-500.0,0.00035616,2]
[314553005,1708419044862,-500.0,0.00035616,2]
[314553006,1708419044872,-500.0,0.00035616,2]
[314553007,1708419044881,-500.0,0.00035616,2]
[314553008,1708419044891,-500.0,0.00035616,2]
[314553009,1708419044901,-500.0,0.00035616,2]
[314553010,1708419044910,-500.0,0.00035616,2]
[314553011,1708419044920,-500.0,0.00035616,2]
[314553012,1708419044929,-500.0,0.00035616,2]
[314553013,1708419044938,-1977.95,0.00035616,2]
[314553014,1708419044948,-861.79,0.00035616,2]
[314553015,1708419044958,-1010.96,0.00035616,2]
[314553016,1708419044968,-784.44,0.00035616,2]
[314553017,1708419044976,-562.0,0.00035616,2]
[314553018,1708419044985,-812.38,0.00035616,2]
[314553019,1708419044994,-500.0,0.00035616,2]
[314553020,1708419045003,-500.0,0.00035616,2]
[314553021,1708419045015,-500.0,0.00035616,2]
[314553022,1708419045024,-473.30169265,0.00035616,2]
[314553023,1708419045033,-500.0,0.00035616,2]
[314553024,1708419045042,-500.0,0.00035616,2]
[314553025,1708419045051,-2626.44,0.00035616,2]
[314553026,1708419045061,-792.09,0.00035616,2]
[314553027,1708419045072,-500.0,0.00035616,2]
[314553028,1708419045082,-500.0,0.00035616,2]
[314553029,1708419045093,-1634.73,0.00035616,2]
[314553030,1708419045102,-500.0,0.00035616,2]
[314553031,1708419045112,-500.0,0.00035616,2]
[314553032,1708419045122,-500.0,0.00035616,2]
[314553033,1708419045131,-1656.4,0.00035616,2]
[314553034,1708419045141,-500.0,0.00035616,2]
[314553035,1708419045150,-781.51,0.00035616,2]
[314553036,1708419045158,-500.0,0.00035616,2]
[314553037,1708419045168,-745.22,0.00035616,2]
[314553038,1708419045177,-756.91,0.00035616,2]
[314553039,1708419045186,-523.28579797,0.00035616,2]
[314553040,1708419045195,-2791.99,0.00035616,2]
[314553041,1708419045205,-500.0,0.00035616,2]
[314553042,1708419045213,-405.52557696,0.00035616,2]
[314553043,1708419045222,-500.0,0.00035616,2]
[314553044,1708419045231,-500.0,0.00035616,2]
[314553045,1708419045240,-1693.47,0.00035616,2]
[314553046,1708419045249,-500.0,0.00035616,2]
[314553047,1708419045259,-500.0,0.00035616,2]
[314553048,1708419045268,-500.0,0.00035616,2]
[314553049,1708419045277,-500.0,0.00035616,2]
[314553050,1708419045286,-500.0,0.00035616,2]
[314553051,1708419045296,-500.0,0.00035616,2]
[314553052,1708419045307,-500.0,0.00035616,2]
[314553053,1708419045316,-500.0,0.00035616,2]
[314553054,1708419045327,-1201.72,0.00035616,2]
[314553055,1708419045336,-500.0,0.00035616,2]
[314553056,1708419045347,-500.0,0.00035616,2]
[314553057,1708419045356,-1235.44,0.00035616,2]
[314553058,1708419045365,-500.0,0.00035616,2]
[314553059,1708419045374,-500.0,0.00035616,2]
[314553060,1708419045383,-654.59,0.00035616,2]
[314553061,1708419045393,-500.0,0.00035616,2]
[314553062,1708419045404,-500.0,0.00035616,2]
[314553063,1708419045413,-1363.22,0.00035616,2]
[314553064,1708419045422,-4559.11,0.00035616,2]
[314553065,1708419045431,-500.0,0.00035616,2]
[314553066,1708419045440,-500.0,0.00035616,2]
[314553067,1708419045449,-928.63,0.00035616,2]
[314553068,1708419045458,-500.0,0.00035616,2]
[314553069,1708419045467,-1175.67,0.00035616,2]
[314553070,1708419045476,-673.84,0.00035616,2]
[314553071,1708419045485,-500.0,0.00035616,2]
[314553072,1708419045494,-500.0,0.00035616,2]
[314553073,1708419045503,-653.63,0.00035616,2]
[314553074,1708419045512,-620.61,0.00035616,2]
[314553075,1708419045521,-500.0,0.00035616,2]
[314553076,1708419045529,-735.52,0.00035616,2]
[314553077,1708419045538,-500.0,0.00035616,2]
[314553078,1708419045547,-500.0,0.00035616,2]
[314553079,1708419045556,-1190.32,0.00035616,2]
[314553080,1708419045565,-919.21,0.00035616,2]
[314553081,1708419045574,-500.0,0.00035616,2]
[314553082,1708419045583,-778.11,0.00035616,2]
[314553083,1708419045592,-500.0,0.00035616,2]
[314553084,1708419045601,-1248.9,0.00035616,2]
[314553085,1708419045610,-1331.63,0.00035616,2]
[314553086,1708419045619,-500.0,0.00035616,2]
[314553087,1708419045629,-500.0,0.00035616,2]
[314553088,1708419045638,-1305.16,0.00035616,2]
[314553089,1708419045647,-500.0,0.00035616,2]
[314553090,1708419045657,-801.07,0.00035616,2]
[314553091,1708419045665,-500.0,0.00035616,2]
[314553092,1708419045674,-989.45,0.00035616,2]
[314553093,1708419045684,-2608.12,0.00035616,2]
[314553094,1708419045693,-500.0,0.00035616,2]
[314553095,1708419045702,-500.0,0.00035616,2]
[314553096,1708419045711,-500.0,0.00035616,2]
[314553097,1708419045720,-701.6,0.00035616,2]
[314553098,1708419045729,-706.94,0.00035616,2]
[314553099,1708419045738,-852.96,0.00035616,2]
[314553100,1708419045748,-500.0,0.00035616,2]
[314553101,1708419045757,-500.0,0.00035616,2]
[314553102,1708419045766,-500.0,0.00035616,2]
[314553103,1708419045776,-1935.34,0.00035616,2]
[314553104,1708419045786,-4970.17,0.00035616,2]
[314553105,1708419045795,-922.97,0.00035616,2]
[314553106,1708419045804,-500.0,0.00035616,2]
[314553107,1708419045813,-2050.13,0.00035616,2]
[314553108,1708419045822,-500.0,0.00035616,2]
[314553109,1708419045832,-500.0,0.00035616,2]
[314553110,1708419045846,-500.0,0.00035616,2]
[314553111,1708419045855,-500.0,0.00035616,2]
[314553112,1708419045864,-500.0,0.00035616,2]
[314553113,1708419045874,-500.0,0.00035616,2]
[314553114,1708419045884,-500.0,0.00035616,2]
[314553115,1708419045893,-719.8,0.00035616,2]
[314553116,1708419045902,-883.52,0.00035616,2]
[314553117,1708419045912,-500.0,0.00035616,2]
[314553118,1708419045921,-500.0,0.00035616,2]
[314553119,1708419045930,-500.0,0.00035616,2]
[314553121,1708419045939,-1705.76,0.00035616,2]
[314553122,1708419045948,-500.0,0.00035616,2]
[314553123,1708419045957,-562.76316045,0.00035616,2]
[314553124,1708419045966,-500.0,0.00035616,2]
[314553125,1708419045975,-928.51,0.00035616,2]
[314553126,1708419045984,-2000.0,0.00035616,2]
[314553127,1708419045993,-500.0,0.00035616,2]
[314553128,1708419046002,-504.06,0.00035616,2]
[314553129,1708419046012,-500.0,0.00035616,2]
[314553130,1708419046021,-500.0,0.00035616,2]
[314553131,1708419046030,-500.0,0.00035616,2]
[314553132,1708419046039,-500.0,0.00035616,2]
[314553133,1708419046048,-200.0,0.00035616,2]
[314553135,1708419046058,-957.17,0.00035616,2]
[314553136,1708419046067,-439.66919217,0.00035616,2]
[314553137,1708419046076,-500.0,0.00035616,2]
[314553139,1708419046085,-883.47,0.00035616,2]
[314553140,1708419046094,-500.0,0.00035616,2]
[314553141,1708419046103,-226.26888901,0.00035616,2]
[314553142,1708419046113,-500.0,0.00035616,2]
[314553143,1708419046122,-1392.98,0.00035616,2]
[314553144,1708419046131,-1172.81,0.00035616,2]
[314553145,1708419046140,-500.0,0.00035616,2]
[314553146,1708419046150,-500.0,0.00035616,2]
[314553147,1708419046159,-500.0,0.00035616,2]
[314553148,1708419046170,-500.0,0.00035616,2]
[314553149,1708419046179,-948.81,0.00035616,2]
[314553150,1708419046189,-1575.6,0.00035616,2]
[314553151,1708419046199,-693.09,0.00035616,2]
[314553152,1708419046209,-500.0,0.00035616,2]
[314553153,1708419046219,-500.0,0.00035616,2]
[314553154,1708419046229,-500.0,0.00035616,2]
[314553155,1708419046238,-500.0,0.00035616,2]
[314553156,1708419046248,-500.0,0.00035616,2]
[314553157,1708419046258,-500.0,0.00035616,2]
[314553158,1708419046268,-500.0,0.00035616,2]
[314553159,1708419046277,-500.0,0.00035616,2]
[314553160,1708419046286,-500.0,0.00035616,2]
[314553161,1708419046296,-695.54,0.00035616,2]
[314553162,1708419046305,-666.0,0.00035616,2]
[314553163,1708419046315,-677.28,0.00035616,2]
[314553164,1708419046325,-559.85,0.00035616,2]
[314553165,1708419046334,-550.07303788,0.00035616,2]
[314553166,1708419046344,-500.0,0.00035616,2]
[314553167,1708419046354,-500.0,0.00035616,2]
[314553168,1708419046363,-500.0,0.00035616,2]
[314553169,1708419046372,-500.0,0.00035616,2]
[314553170,1708419046382,-1691.35,0.00035616,2]
[314553171,1708419046391,-500.0,0.00035616,2]
[314553172,1708419046400,-500.0,0.00035616,2]
[314553173,1708419046410,-943.33,0.00035616,2]
[314553174,1708419046419,-500.0,0.00035616,2]
[314553175,1708419046429,-500.0,0.00035616,2]
[314553176,1708419046438,-500.0,0.00035616,2]
[314553177,1708419046447,-520.39,0.00035616,2]
[314553178,1708419046456,-500.0,0.00035616,2]
[314553179,1708419046466,-1029.71,0.00035616,2]
[314553180,1708419046475,-758.81,0.00035616,2]
[314553181,1708419046485,-765.95,0.00035616,2]
[314553182,1708419046494,-500.0,0.00035616,2]
[314553183,1708419046502,-561.68790391,0.00035616,2]
[314553184,1708419046512,-500.0,0.00035616,2]
[314553186,1708419046521,-500.0,0.00035616,2]
[314553188,1708419046530,-899.86,0.00035616,2]
[314553189,1708419046539,-641.74812113,0.00035616,2]
[314553191,1708419046548,-500.0,0.00035616,2]
[314553192,1708419046558,-150.0,0.00035623,2]
[314553193,1708419046567,-11836.6347615,0.00035624,2]
[314553194,1708419046576,-6800.315709,0.00035624,2]
[314553195,1708419046586,-151.0212031,0.00035648,2]
[314553196,1708419046597,-170.64638633,0.00035655,8]
[314553197,1708419046605,-171.73,0.00035664,2]
[314553198,1708419046614,-214.0,0.0003567,2]
[314553199,1708419046623,-150.0,0.00035693,2]
[314553200,1708419046633,-388.29820233,0.00035698,2]
[314553201,1708419046643,-175.0,0.000357,2]
[314553202,1708419046653,-150.0,0.00035702,2]
[314553203,1708419046663,-150.0,0.00035709,2]
[314553204,1708419046673,-150.0,0.00035723,2]
[314553205,1708419046684,-150.0,0.00035727,2]
[314553206,1708419046693,-1500.0,0.00035729,2]
[314553207,1708419046703,-157.0212031,0.00035748,2]
[314553208,1708419046712,-212.48,0.00035754,2]
[314553209,1708419046722,-150.0,0.00035755,2]
[314553210,1708419046732,-150.0,0.00035783,2]
[314553211,1708419046742,-150.0,0.00035785,2]